[Event "Romanian Rapid Open 2022"]
[Site "Sebes"]
[Date "2022.12.02"]
[Round "5.34"]
[White "Jiros, Doru"]
[Black "Hoanca, Alexia-Ioana"]
[Result "1/2-1/2"]
[ECO "A45"]
[WhiteElo "1936"]
[BlackElo "1644"]
[Annotator "TA"]
[PlyCount "124"]
[EventDate "2022.12.02"]
[EventType "rapid"]
[EventCountry "ROU"]
[SourceTitle "playchess.com"]
[Source "ChessBase"]
[SourceQuality "1"]
[TimeControl "600+5"]

{[%evp 9,124,-24,45,34,32,28,39,52,52,45,49,62,26,-51,-45,-42,-39,-37,-39,-61,-19,-17,0,-12,-11,-11,-8,-8,0,-24,-21,-87,-29,-114,-110,-110,-62,-66,-35,-41,-26,-19,0,-32,0,0,0,0,0,0,0,0,0,1,17,-66,0,0,0,0,0,0,0,0,0,0,0,0,0,-116,-65,-53,-41,-128,-129,-137,-143,-118,-102,-106,-98,-102,-110,-124,-85,-147,-148,-197,-197,-197,-116,-97,0,-181,-132,-246,-84,-195,-88,-286,-203,-210,-199,-138,-121,-432,-432,-466,-365,-281,0,0,0,0,0,0,0]} 1. d4 {[%emt 0:00:03]} Nf6 {[%emt 0:00:01]} 2. Bg5 {[%emt 0:00:04]} Ne4 {[%emt 0:00:02]} 3. h4 {[%emt 0:00:06]} h6 {[%emt 0:00:09]} 4. Bf4 {[%emt 0:00:09]} c5 {[%emt 0:00:06]} 5. d5 {[%emt 0:00:33]} Qa5+ {[%emt 0:00:58]} (5... Qb6 $11 6. Nd2 Nxd2 7. Bxd2 Qxb2) 6. Nd2 {[%emt 0:00:26] [#] A45: Trompowsky Attack.} (6. c3 {simplifies} d6 7. f3 Nf6 8. e4) 6... e6 $146 {[%emt 0:00:23]} ({Predecessor:} 6... d6 7. c3 Nxd2 8. Qxd2 Bf5 9. f3 Nd7 10. e4 Bh7 11. c4 Qxd2+ 12. Bxd2 f5 13. exf5 Bxf5 {1-0 (53) Plichta,K (2335)-Kolasinski,K (2111) Zgierz 2018}) 7. c3 {[%emt 0:00:42]} exd5 {[%emt 0:00:56]} 8. Nxe4 {[%emt 0:01:29] White is slightly better.} ({Of course not} 8. Nb3 Qb6 9. Qxd5 Nf6 $15) 8... dxe4 {[%emt 0:00:02]} 9. Qd5 {[%emt 0:00:13][%cal Of4b8] And now Bxb8! would win.} Nc6 {[%emt 0:02:33]} 10. Qxe4+ {[%emt 0:01:17]} Be7 {[%emt 0:00:02]} 11. Bd6 {[%emt 0:00:25] [#]} (11. Nf3 $11) 11... O-O $1 $15 {[%emt 0:00:40]} 12. Bxe7 {[%emt 0:00:58]} (12. Qd5 Bxd6) 12... Re8 {[%emt 0:00:02]} 13. e3 {[%emt 0:00:25][%cal Of1d3] Strongly threatening Bd3!} Rxe7 {[%emt 0:00:13]} 14. Qd3 {[%emt 0:00:38]} Qc7 {[%emt 0:00:29][%cal Od7d5]} 15. Be2 {[%emt 0:00:16]} d6 {[%emt 0:00:23]} (15... Ne5 $5 {[%cal Re5d3]} 16. Qc2 b6 $11) 16. Nf3 {[%emt 0:00:18]} Be6 {[%emt 0:00:10]} 17. O-O {[%emt 0:00:21]} d5 {[%emt 0:00:18]} 18. Qc2 {[%emt 0:00:30]} Ne5 {[%emt 0:00:29]} 19. Rae1 {[%emt 0:00:54]} Rd8 {[%emt 0:00:30]} 20. Nh2 {[%emt 0:00:08]} (20. Rc1 $11) 20... Nd7 {[%emt 0:01:05]} (20... d4 $17 {Threatens to win with ...d3.} 21. cxd4 cxd4 22. Qxc7 Rxc7 23. exd4 Rxd4) 21. f4 {[%emt 0:00:06]} (21. Rd1 $11) 21... Nf6 $17 {[%emt 0:00:06]} 22. g4 {[%emt 0:00:15]} Bd7 {[%emt 0:00:18]} (22... h5 $17 {[%cal Rh5g4]} 23. gxh5 d4 24. cxd4 cxd4 25. Qxc7 Rxc7) 23. Bf3 $15 {[%emt 0:00:12]} Rde8 {[%emt 0:00:02]} 24. g5 {[%emt 0:00:28]} hxg5 {[%emt 0:00:03]} (24... Rxe3 $2 25. Rxe3 Rxe3 26. gxf6 $18) (24... Ne4 $5 {[%cal Rd7b5]}) 25. hxg5 {[%emt 0:00:01]} Ne4 {[%emt 0:00:02]} ({Don't play} 25... Rxe3 26. Rxe3 Rxe3 27. gxf6 $16) 26. Qg2 {[%emt 0:00:16] Against Bh3} Bf5 {[%emt 0:00:23][%cal Od5d4]} 27. Ng4 {[%emt 0:00:10] Prevents d4.} Bxg4 {[%emt 0:00:02]} 28. Qxg4 {[%emt 0:00:02]} Nd2 {[%emt 0:00:03][%csl LRe3,LRf1]} 29. Rf2 {[%emt 0:00:28]} Nxf3+ {[%emt 0:00:02]} (29... Rxe3 $2 30. Rxe3 Rxe3 31. Rxd2 $18) 30. Qxf3 {[%emt 0:00:03] White wants to play Rh2.} Re4 {[%emt 0:00:20]} 31. Qh3 {[%emt 0:00:20]} Qc8 {[%emt 0:00:30]} 32. Qh4 {[%emt 0:00:19]} (32. Qxc8 $11 Rxc8 33. Rd2) 32... Qf5 {[%emt 0:00:56]} (32... Rxe3 $2 33. Rxe3 Rxe3 34. Rh2 $18) (32... Qe6 $1 $15 33. Rh2 Kf8) 33. Rh2 $11 {[%emt 0:00:02][%csl Gh2][%cal Rh4h8]} f6 {[%emt 0:00:10]} 34. gxf6 {[%emt 0:00:07]} Qxf6 {[%emt 0:00:02]} 35. Qh7+ {[%emt 0:00:02]} Kf7 {[%emt 0:00:03]} 36. Qh5+ {[%emt 0:00:02]} Qg6+ {[%emt 0:00:07]} 37. Qxg6+ {[%emt 0:00:02]} Kxg6 {[%emt 0:00:01][%mdl 4096] Endgame KRR-KRR} 38. Rg2+ {[%emt 0:00:02]} Kf6 {[%emt 0:00:02]} 39. Rg3 {[%emt 0:00:02]} (39. Rd1 $11 {remains equal.}) 39... d4 {[%emt 0:00:02]} ({Black should play} 39... Rxf4 $17 40. Kg2 Rf5) 40. Kf2 $15 {[%emt 0:00:02]} dxe3+ {[%emt 0:00:20]} 41. Rgxe3 {[%emt 0:00:02]} ({Better is} 41. Rexe3 $15 Rxf4+ 42. Rgf3 Rxf3+ 43. Rxf3+ Kg6 44. Rg3+ Kh7 45. Rh3+ Kg6 46. Rg3+ Kh6 47. Rh3+ Kg6 48. Rg3+) 41... Rxf4+ $17 {[%emt 0:00:05]} 42. Kg3 {[%emt 0:00:03]} Rxe3+ {[%emt 0:00:02]} 43. Rxe3 {[%emt 0:00:02] KR-KR} Rf5 {[%emt 0:00:02]} 44. Rd3 {[%emt 0:00:02]} Re5 {[%emt 0:00:03]} 45. Rd7 {[%emt 0:00:03]} Re7 {[%emt 0:00:02]} 46. Rd5 {[%emt 0:00:01]} b6 {[%emt 0:00:01]} 47. Rd2 {[%emt 0:00:03] Inhibits Re2.} (47. Kf3 $142) 47... g5 {[%emt 0:00:02]} 48. Rf2+ {[%emt 0:00:53]} (48. Kg4 $17) 48... Kg6 $19 {[%emt 0:00:04]} 49. Rd2 {[%emt 0:00:00]} Kf5 {[%emt 0:00:06]} (49... Re1 $19 50. Kf3 Rf1+ 51. Kg4 Rg1+ 52. Kf3 Kf5 53. Rd5+ Ke6) 50. Rf2+ $17 {[%emt 0:00:00]} Kg6 {[%emt 0:00:03]} (50... Ke5 $17) 51. Rd2 $1 $19 {[%emt 0:00:00] Prevents Rd7.} Re6 {[%emt 0:00:05]} (51... Re1 $19 52. Kf3 Rf1+ 53. Kg4 Kf6 54. Rd6+ Ke5) 52. Rd7 {[%emt 0:00:00]} (52. Kg4 $17) 52... a5 $2 {[%emt 0:00:01]} (52... Re2 $19 53. Rxa7 Rxb2) 53. Rd2 {[%emt 0:00:00]} (53. Kg4 $17 {was called for.}) 53... Rf6 {[%emt 0:00:05]} (53... a4 $19 {[%cal Oa4a3] and Black stays clearly on top. ...a3! is the strong threat.} 54. a3 b5) 54. c4 $2 {[%emt 0:00:00]} (54. Rd5 $17 {was forced.}) 54... Re6 {[%emt 0:00:03]} 55. b3 {[%emt 0:00:00]} Kf5 {[%emt 0:00:10]} 56. Rf2+ {[%emt 0:00:00] [#]} Ke5 $1 {[%emt 0:00:03] aiming for ...Kd4.} 57. Kg4 $2 {[%emt 0:00:00][%mdl 8192]} (57. Re2+ $17 {was the crucial defense.} Kf5 58. Rf2+ Kg6 59. Rf8) 57... Kd4 {[%emt 0:00:08]} 58. Kxg5 {[%emt 0:00:00]} Kc3 {[%emt 0:00:01][%cal Oa5a4]} 59. Kf5 {[%emt 0:00:00] [#]} Rd6 {[%emt 0:00:02]} ({Black should try} 59... Re3 $1 $19 {[%cal Oa5a4] White must now prevent ...a4!} 60. Kf4 Kd4) 60. Ke5 $11 {[%emt 0:00:00] The position is equal.} Rh6 {[%emt 0:00:13]} 61. Kd5 {[%emt 0:00:00]} Kb4 {[%emt 0:00:10]} 62. Re2 {[%emt 0:00:00]} a4 {[%emt 0:00:03] Weighted Error Value: White=0.32/Black=0.26 (precise)} 1/2-1/2

[Event "Romanian Rapid Open 2022"]
[Site "Sebes"]
[Date "2022.12.02"]
[Round "5.35"]
[White "Arion, Ilie"]
[Black "Patilea, Alin-Giani"]
[Result "1-0"]
[ECO "A52"]
[WhiteElo "1924"]
[BlackElo "1475"]
[Annotator "TA"]
[PlyCount "77"]
[EventDate "2022.12.02"]
[EventType "rapid"]
[EventCountry "ROU"]
[SourceTitle "playchess.com"]
[Source "ChessBase"]
[SourceQuality "1"]
[TimeControl "600+5"]

{[%evp 25,77,37,33,33,36,26,36,37,70,78,105,98,88,81,81,73,83,74,79,81,152,139,502,190,218,203,260,237,846,88,917,918,872,886,870,857,727,363,29996,275,268,275,295,295,343,295,374,370,618,603,29997,29998,29998,29999]} 1. d4 {[%emt 0:00:03]} Nf6 {[%emt 0:00:03]} 2. c4 {[%emt 0:00:02]} e5 {[%emt 0:00:06]} 3. dxe5 {[%emt 0:00:02]} Ng4 {[%emt 0:00:01]} 4. Bf4 {[%emt 0:00:04]} Nc6 {[%emt 0:00:03]} 5. Nf3 {[%emt 0:00:04]} Bb4+ {[%emt 0:00:28]} 6. Nbd2 {[%emt 0:00:01]} Qe7 {[%emt 0:00:05]} 7. a3 {[%emt 0:00:11]} Bxd2+ {[%emt 0:00:18]} 8. Qxd2 {[%emt 0:00:02]} Ngxe5 {[%emt 0:00:12]} 9. Nxe5 {[%emt 0:00:02]} Nxe5 {[%emt 0:00:05]} 10. e3 {[%emt 0:00:01]} O-O {[%emt 0:00:11]} 11. Be2 {[%emt 0:00:02]} d6 {[%emt 0:00:07]} 12. O-O {[%emt 0:00:02]} b6 {[%emt 0:00:11]} 13. b4 {[%emt 0:00:23]} Bb7 {[%emt 0:00:29]} 14. Rac1 {[%emt 0:00:08][%cal Oc4c5] A52: Budapest Gambit.} Rad8 {[%emt 0:00:53]} 15. Qc3 {[%emt 0:00:02]} Ng6 {[%emt 0:00:22] [#] Hoping for ...Nxf4.} 16. Bg3 {[%emt 0:00:01] [#] White is slightly better.} Ne5 $146 {[%emt 0:01:14]} ({Predecessor:} 16... Nh4 17. f3 Rfe8 18. e4 Ng6 19. Bd3 Ne5 20. Bb1 Nd7 21. Rfe1 Qf6 22. Qc2 g6 {1-0 (52) Rodriguez Beltran,F (1621)-Garcia Vidal,E (1480) Barcelona 2016}) 17. c5 {[%emt 0:00:06]} Rfe8 {[%emt 0:01:19]} 18. cxd6 {[%emt 0:00:08]} cxd6 {[%emt 0:00:06]} 19. Bb5 {[%emt 0:00:31]} Rc8 {[%emt 0:00:32]} 20. Qd4 {[%emt 0:00:06]} Rxc1 {[%emt 0:00:08]} 21. Rxc1 {[%emt 0:00:01]} Rc8 {[%emt 0:00:09]} 22. Rd1 {[%emt 0:00:08]} a6 {[%emt 0:00:31]} (22... f6 $142) 23. Be2 $16 {[%emt 0:00:23]} (23. Qxd6 $2 Qxd6 24. Rxd6 axb5 $19) 23... Rc6 $2 {[%emt 0:01:09][%mdl 8192]} (23... b5 $16 {is tougher.} 24. Qxd6 Qxd6 25. Rxd6 Nc4) 24. h3 $2 {[%emt 0:00:20]} (24. Bxe5 dxe5 25. Qd8+ (25. Qxe5 Qf8 $18) 25... Qf8 26. Bf3) 24... h6 {[%emt 0:00:19]} 25. a4 {[%emt 0:00:16]} Rc2 {[%emt 0:00:34]} 26. Bxe5 {[%emt 0:00:21]} dxe5 $2 {[%emt 0:00:02]} (26... Rxe2 27. Qxd6 Qxd6 28. Rxd6 Be4 29. Rxb6 f6) 27. Qd3 $2 {[%emt 0:00:39]} (27. Qd8+ $18 Qf8 28. Qxb6 Rxe2 29. Rd8 Re1+ 30. Kh2 Qxd8 31. Qxd8+ Kh7 32. Qd3+ f5 33. Qxf5+ Kg8 34. Qxe5) 27... Qc7 $2 {[%emt 0:00:16][%mdl 8192]} (27... Rc8 $16) 28. Qd8+ $18 {[%emt 0:00:05]} Kh7 {[%emt 0:01:22]} 29. Bd3+ {[%emt 0:00:01]} e4 {[%emt 0:00:06]} 30. Bxc2 {[%emt 0:00:02]} Qxc2 {[%emt 0:00:04][%mdl 4096] Endgame KQR-KQB} 31. Qd7 {[%emt 0:00:07]} (31. Rd7 $142 Bc6 32. Rxf7) 31... Bc6 $2 {[%emt 0:00:06]} (31... Bc8 $18 32. Qd6 (32. Qxf7 $2 {loses.} Qxd1+ 33. Kh2 Qd6+ 34. Kg1 Qxb4 $19) 32... Qxa4) 32. Qd4 $2 {[%emt 0:00:13]} (32. Qxf7 $2 {too greedy.} Qxd1+ 33. Kh2 Qd6+ 34. Kg1 Bxa4 35. Qf5+ Qg6 $19) (32. Qf5+ {mates} g6 33. Qxf7+ Kh8 34. Rd8+ Be8 35. Rxe8#) 32... Bxa4 {[%emt 0:00:07]} 33. Rd2 {[%emt 0:00:01]} Qc1+ {[%emt 0:00:12]} 34. Kh2 {[%emt 0:00:02]} Qc7+ {[%emt 0:00:02]} 35. Qd6 {[%emt 0:00:04]} Qc3 {[%emt 0:00:16]} 36. Rd4 {[%emt 0:00:10]} Qe1 $2 {[%emt 0:00:36]} (36... Qc2 37. Kg3 Qc6 38. Qxc6 Bxc6) 37. Qf4 {[%emt 0:00:02] [#] White threatens Qf5+ and mate.} Bc2 {[%emt 0:00:17]} 38. Qf5+ {[%emt 0:00:02]} g6 {[%emt 0:00:01]} 39. Qxf7+ {[%emt 0:00:02] Weighted Error Value: White=0.81/Black=1.03} 1-0

[Event "Romanian Rapid Open 2022"]
[Site "Sebes"]
[Date "2022.12.02"]
[Round "5.36"]
[White "Borodi, Cosmin-Alin"]
[Black "Santimbrean, Mihnea-Nicolae"]
[Result "1-0"]
[ECO "A13"]
[WhiteElo "1919"]
[BlackElo "1491"]
[Annotator "TA"]
[PlyCount "132"]
[EventDate "2022.12.02"]
[EventType "rapid"]
[EventCountry "ROU"]
[SourceTitle "playchess.com"]
[Source "ChessBase"]
[SourceQuality "1"]
[TimeControl "600+5"]

{[%evp 9,132,-23,0,-12,-18,-18,15,-48,0,-2,0,-1,0,-16,-7,-13,0,0,0,0,0,0,0,-13,-3,-95,-89,-99,-100,-102,-85,-100,-94,-109,-86,-100,-70,-224,-220,-264,-267,-273,-266,-603,-343,-316,-195,-394,-189,-270,-74,-180,-174,-29987,-29988,-29998,-781,-693,-743,-716,-172,-181,-131,-182,-139,-357,-254,-372,-385,-378,-370,-500,-485,-577,-582,-566,-565,-562,-550,-689,-255,-265,-263,-254,-262,-243,-242,-329,-365,-343,-356,-356,-327,-411,0,0,28,28,28,28,28,28,28,28,28,28,28,20,20,20,111,111,111,111,111,111,111,0,111,111,29997,111,111,111,111]} 1. c4 {[%emt 0:00:30]} e6 {[%emt 0:00:02]} 2. b3 {[%emt 0:00:03]} d5 {[%emt 0:00:08]} 3. cxd5 {[%emt 0:00:03]} exd5 {[%emt 0:00:04]} 4. Bb2 {[%emt 0:00:03]} Nf6 {[%emt 0:00:03]} 5. e3 {[%emt 0:00:02]} Be7 {[%emt 0:00:07]} 6. Nf3 {[%emt 0:00:03] A13: English Opening: 1...e6.} O-O {[%emt 0:01:11]} 7. Qc2 {[%emt 0:00:03]} Nbd7 {[%emt 0:00:23] [#]} 8. h4 $146 {[%emt 0:00:05]} (8. d4 $11) ({Predecessor:} 8. a3 c5 9. d4 b6 10. Bd3 Bb7 11. O-O Rc8 12. Qe2 Qc7 13. Nbd2 Bd6 14. Rfd1 {0-1 (37) Kurdakov,Y (2107)-Gurskiy,D (1735) St Petersburg 2019}) 8... Ne4 {[%emt 0:00:46]} (8... Re8 $15) 9. Nc3 $11 {[%emt 0:00:14]} Nxc3 {[%emt 0:00:41]} 10. Bxc3 {[%emt 0:00:02]} Bf6 {[%emt 0:00:06]} (10... Nc5 {feels hotter.} 11. Ng5 g6 12. Be2 Bf5) 11. Ng5 {[%emt 0:00:06][%csl Gg5][%cal Rc2h7]} g6 {[%emt 0:00:55]} 12. Be2 {[%emt 0:01:13]} Bxc3 {[%emt 0:00:49]} 13. dxc3 {[%emt 0:00:12]} c6 {[%emt 0:00:48]} 14. Rd1 {[%emt 0:00:52]} Qe7 {[%emt 0:00:59]} 15. O-O {[%emt 0:00:31]} Ne5 {[%emt 0:01:02]} 16. g3 {[%emt 0:02:02]} (16. e4 {simplifies} h6 17. Nf3 Nxf3+ 18. Bxf3 dxe4 19. Qxe4 Qxe4 20. Bxe4 Be6 21. Bc2) 16... Qf6 {[%emt 0:01:58]} 17. f4 {[%emt 0:01:23] Inhibits h6.} (17. Rd4 $11) 17... Ng4 $17 {[%emt 0:00:08]} 18. Qd2 {[%emt 0:00:32][%cal Of4f5]} h6 {[%emt 0:00:28] Against f5} 19. Bxg4 {[%emt 0:00:13]} Bxg4 {[%emt 0:00:04]} 20. Nf3 {[%emt 0:00:04]} Rfe8 {[%emt 0:00:08]} 21. Rde1 {[%emt 0:00:03]} Qf5 {[%emt 0:00:17]} (21... Bxf3 {simplifies} 22. Rxf3 Re4 23. Kg2 Rae8) 22. Nd4 {[%emt 0:00:21]} Qe4 {[%emt 0:00:19]} 23. Qg2 $2 {[%emt 0:00:22]} (23. Qc2 $15) 23... Qd3 $19 {[%emt 0:00:12][%csl LRc3,LRe3]} 24. Qc2 {[%emt 0:00:07]} Rxe3 {[%emt 0:00:18]} 25. Rxe3 {[%emt 0:00:40]} Qxe3+ {[%emt 0:00:03]} 26. Kh2 $2 {[%emt 0:00:43]} (26. Kg2) 26... Re8 {[%emt 0:00:04]} 27. b4 {[%emt 0:00:45]} a6 {[%emt 0:00:05][%cal Oa6a5]} 28. a4 $2 {[%emt 0:00:09]} (28. Rf2) 28... Kg7 {[%emt 0:00:10]} (28... a5 $142 29. Qc1 axb4 30. Qxe3 Rxe3 31. cxb4 Re4) 29. Rf2 {[%emt 0:00:09]} (29. a5 {might work better.}) 29... g5 $2 {[%emt 0:00:01]} (29... Qe1 $19 {...Re3 is the strong threat.} 30. Qd2 Qxd2 31. Rxd2 Re3) 30. hxg5 {[%emt 0:00:11]} (30. fxg5 $17 hxg5 31. Nf5+ Bxf5 32. Qxf5) 30... hxg5 {[%emt 0:00:03] ( -> ...Rh8+)} 31. fxg5 $2 {[%emt 0:00:22] [#]} (31. Kg2 $19) 31... Rh8+ {[%emt 0:00:02]} 32. Kg1 {[%emt 0:00:07]} Qe1+ {[%emt 0:00:06]} (32... Qxg3+ $142 33. Rg2 Qe1#) 33. Rf1 {[%emt 0:00:09]} Qxg3+ {[%emt 0:00:02]} 34. Qg2 {[%emt 0:00:01]} Qe3+ $2 {[%emt 0:00:04]} (34... Qxg2+ 35. Kxg2 Bh3+ 36. Kg1 Bxf1 37. Kxf1 Rh3) 35. Qf2 {[%emt 0:00:08]} Qxf2+ {[%emt 0:00:02]} (35... Qxc3 $2 36. Qxf7#) (35... Rh3 $19 36. Qxe3 Rxe3) 36. Rxf2 {[%emt 0:00:01][%mdl 4096] Endgame KRB-KRN} (36. Kxf2 $17 Rh3 37. Rg1) 36... Rh3 {[%emt 0:00:05]} 37. Rc2 {[%emt 0:00:07]} (37. Rf4 $17 Bd1 38. b5) 37... Rd3 {[%emt 0:00:05]} 38. b5 {[%emt 0:00:04]} (38. Rg2 {is a better defense.} Bd1 39. a5) 38... axb5 {[%emt 0:00:02]} 39. axb5 {[%emt 0:00:01]} c5 {[%emt 0:00:02]} 40. Nb3 {[%emt 0:00:04]} b6 {[%emt 0:00:02]} 41. Nd2 {[%emt 0:00:06]} Bd1 {[%emt 0:00:06]} 42. Ra2 {[%emt 0:00:12]} Rxc3 {[%emt 0:00:02]} 43. Nf1 {[%emt 0:00:06]} Rc2 {[%emt 0:00:04]} 44. Ra6 {[%emt 0:00:03][%cal Of1e3]} Be2 $2 {[%emt 0:00:02]} (44... d4 45. Ng3 Kg6) 45. Ne3 {[%emt 0:00:03]} Rc1+ {[%emt 0:00:02]} 46. Kf2 {[%emt 0:00:01]} Bxb5 {[%emt 0:00:02]} 47. Rxb6 {[%emt 0:00:02]} Bc4 {[%emt 0:00:03] Threatens to win with ...d4.} 48. Rc6 {[%emt 0:00:05]} d4 {[%emt 0:00:02]} 49. Nf5+ {[%emt 0:00:06]} Kh7 {[%emt 0:00:03] And now ...Rf1+ would win.} 50. Rxc5 {[%emt 0:00:03]} Rc2+ {[%emt 0:00:03]} 51. Kg3 {[%emt 0:00:02] [#]} Bd3 $2 {[%emt 0:00:04]} ({Better is} 51... d3 $1 $19 {[%cal Rd3d2]} 52. Rc6 (52. Ne3 $2 d2 $19) 52... d2 53. Rh6+ Kg8 54. Ne7+ Kf8) 52. Rxc2 $11 {[%emt 0:00:02]} (52. g6+ {simplifies} Kxg6 53. Rxc2 Bxc2 54. Nxd4 Bf5 55. Kf4) 52... Bxf5 {[%emt 0:00:16] KR-KB} 53. Rc7 {[%emt 0:00:08]} Kg6 {[%emt 0:00:03]} 54. Kf4 {[%emt 0:00:01]} d3 {[%emt 0:00:20]} 55. Rc6+ {[%emt 0:00:01]} Be6 {[%emt 0:00:03]} 56. Rd6 {[%emt 0:00:04]} (56. Rb6 {with more complications.} d2 57. Rd6 f6 58. gxf6 Kxf6 59. Rxd2 Bc8 60. Rd8) 56... Kg7 $1 {[%emt 0:00:26]} 57. Rxd3 {[%emt 0:00:02]} f6 {[%emt 0:00:02]} 58. Rd6 {[%emt 0:00:37]} fxg5+ 59. Kxg5 {[%emt 0:00:01]} Bf7 {[%emt 0:00:04]} (59... Kf7 $11 {keeps the balance.}) 60. Rd7 $16 {[%emt 0:00:01]} Kg8 {[%emt 0:00:24]} 61. Kf6 {[%emt 0:00:34]} Bb3 {[%emt 0:00:05]} 62. Rd8+ {[%emt 0:00:05]} Kh7 63. Rd7+ {[%emt 0:00:05]} Kg8 $1 64. Rb7 {[%emt 0:00:05]} Kh8 $2 {[%emt 0:00:15][%mdl 8192]} 65. Kg6 $2 {[%emt 0:00:05]} (65. Rxb3 {mates} Kh7 66. Rb8 Kh6 67. Rh8#) 65... Bg8 {[%emt 0:00:05]} 66. Kh6 {[%emt 0:00:05]} Ba2 {[%emt 0:00:05] White used his chance.   Weighted Error Value: White=0.62/Black=0.65} 1-0

[Event "Romanian Rapid Open 2022"]
[Site "Sebes"]
[Date "2022.12.02"]
[Round "5.38"]
[White "Saioc, David"]
[Black "Tiloiu, Darius-Lucian"]
[Result "1-0"]
[ECO "D11"]
[WhiteElo "2026"]
[BlackElo "1543"]
[Annotator "TA"]
[PlyCount "89"]
[EventDate "2022.12.02"]
[EventType "rapid"]
[EventCountry "ROU"]
[SourceTitle "playchess.com"]
[Source "ChessBase"]
[SourceQuality "1"]
[TimeControl "600+5"]

{[%evp 17,89,0,4,-8,3,0,0,-40,6,5,8,-15,9,-19,8,-10,5,10,7,-16,-15,-27,-18,-23,-23,-23,-28,-22,-31,-33,-39,-58,-62,-56,-61,-72,-45,-45,-46,-60,-47,-76,-50,-60,-39,-88,-39,-39,0,0,0,0,0,0,1604,2216,5414,5189,1862,2051,29977,29978,29978,29979,29979,29980,29980,29981,29981,29982,29982,29983,29983,29984]} 1. Nf3 {[%emt 0:00:08]} d5 {[%emt 0:00:02]} 2. d4 {[%emt 0:00:04]} Nf6 {[%emt 0:00:06]} 3. g3 {[%emt 0:00:02]} Bf5 {[%emt 0:01:03]} 4. Bg2 {[%emt 0:00:04]} e6 {[%emt 0:00:02]} 5. b3 {[%emt 0:00:07]} Bd6 {[%emt 0:01:16]} 6. Bb2 {[%emt 0:00:03]} Nbd7 {[%emt 0:00:24]} 7. O-O {[%emt 0:00:05]} c6 {[%emt 0:00:18]} 8. Nbd2 {[%emt 0:00:03]} O-O {[%emt 0:00:06]} 9. c4 {[%emt 0:00:11]} Re8 {[%emt 0:01:11]} 10. Rc1 {[%emt 0:01:14] D11: Slav Defence: 3 Nf3 sidelines and 3...Nf6 4 e3 Bg4.} Ne4 {[%emt 0:00:10]} 11. Nh4 {[%emt 0:01:59] [#]} Nxd2 $146 {[%emt 0:02:17]} ({Predecessor:} 11... Be7 12. Nxf5 exf5 13. f3 Nd6 14. c5 Nb5 15. e4 fxe4 16. fxe4 dxe4 17. Nxe4 Nf6 {0-1 (46) Pilaj,H (1825)-Waldmann,G (2060) Austria 1994}) 12. Nxf5 {[%emt 0:01:20] The position is equal.} exf5 {[%emt 0:00:00]} (12... Bb4 $15 13. Nd6 Nxf1 14. Nxe8 Nxg3 15. hxg3 Qxe8) 13. Qxd2 $11 {[%emt 0:00:01]} Nf6 {[%emt 0:00:24]} 14. Qd3 {[%emt 0:01:52]} Qd7 {[%emt 0:01:06]} 15. Rc2 {[%emt 0:00:25]} a6 {[%emt 0:00:57]} 16. Rfc1 {[%emt 0:00:08]} Qe6 {[%emt 0:00:34]} 17. e3 {[%emt 0:00:47]} Ne4 {[%emt 0:00:29]} 18. Bxe4 {[%emt 0:00:51]} fxe4 {[%emt 0:00:07]} 19. Qe2 {[%emt 0:00:16]} Qh3 {[%emt 0:00:10]} 20. a4 {[%emt 0:01:24]} (20. cxd5 {simplifies} cxd5 21. Qe1 Qd7 22. Qa5) 20... Re6 {[%emt 0:00:10]} 21. cxd5 {[%emt 0:00:10]} cxd5 {[%emt 0:00:01]} (21... Rh6 {simplifies} 22. f4 cxd5 23. Bc3 Rg6) 22. Rc8+ {[%emt 0:00:11]} Re8 {[%emt 0:00:16]} 23. Rxa8 {[%emt 0:00:11]} Rxa8 {[%emt 0:00:01]} 24. Qc2 {[%emt 0:00:10]} h5 {[%emt 0:00:22]} 25. Qe2 {[%emt 0:00:06]} g6 {[%emt 0:00:18]} 26. Qf1 {[%emt 0:00:12]} Qxf1+ {[%emt 0:00:11]} 27. Kxf1 $17 {[%emt 0:00:02][%mdl 4096] Endgame KRB-KRB} Kf8 {[%emt 0:00:03]} 28. Ke2 {[%emt 0:00:00]} Ke7 {[%emt 0:00:21]} 29. f3 {[%emt 0:00:03]} f5 {[%emt 0:00:00][%cal Oh5h4]} 30. f4 {[%emt 0:00:07]} Kd7 {[%emt 0:00:00]} 31. Kd2 {[%emt 0:00:09]} (31. Bc3 $15) 31... Bb4+ {[%emt 0:00:00]} (31... h4 $17) 32. Bc3 $15 {[%emt 0:00:02]} Bxc3+ {[%emt 0:00:04]} 33. Rxc3 {[%emt 0:00:01]} Rc8 {[%emt 0:00:01]} 34. Rxc8 {[%emt 0:00:18]} Kxc8 $11 {[%emt 0:00:00] KP-KP} 35. Kc3 {[%emt 0:00:02] Black must now prevent Kb4.} Kc7 $2 {[%emt 0:00:06][%mdl 8192]} (35... a5 $11) 36. Kb4 $18 {[%emt 0:00:02]} Kb6 {[%emt 0:00:12] [#]} 37. a5+ $1 {[%emt 0:00:02]} Kc6 {[%emt 0:00:01] [#]} 38. Ka4 $1 {[%emt 0:00:01]} b5+ {[%emt 0:00:16]} 39. axb6 {[%emt 0:00:10] White mates.} Kxb6 {[%emt 0:00:01]} 40. b4 {[%emt 0:00:02]} Kb7 {[%emt 0:00:12]} 41. Ka5 {[%emt 0:00:02]} Ka7 {[%emt 0:00:01]} 42. b5 {[%emt 0:00:01]} axb5 43. Kxb5 {[%emt 0:00:01]} Kb7 {[%emt 0:00:10]} 44. Kc5 {[%emt 0:00:00]} Kc7 {[%emt 0:00:05]} 45. Kxd5 {[%emt 0:00:02] Weighted Error Value: White=0.10 (very precise) /Black=0.32} 1-0